bitfinex/quotes_SOLUSD_20251019
["timestamp","ask_amount","ask_price","bid_price","bid_amount"]
[1760875194009,0.71,189.3,189.27,11.90353038]
[1760875194709,0.71,189.3,189.27,0.32705517]
[1760875195617,5.99124993,189.35,189.28,10.87647521]
[1760875195814,5.99124993,189.35,189.29,1.0269329]
[1760875196014,0.71,189.34,189.29,1.0269329]
[1760875196208,0.71,189.33,189.29,0.3269329]
[1760875196411,0.71,189.32,189.29,0.3269329]
[1760875196594,23.59,189.35,189.3,5.98240272]
[1760875196913,0.71,189.34,189.31,1.02684587]
[1760875197108,22.88,189.35,189.31,1.02684587]
[1760875197315,0.71,189.34,189.31,0.32684587]
[1760875198006,28.16122817,189.35,189.31,0.32684587]
[1760875198213,0.71,189.34,189.31,0.32684587]
[1760875198407,0.71,189.33,189.3,0.32684587]
[1760875198617,5.28159036,189.34,189.3,1.02684587]
[1760875198933,0.71,189.33,189.3,1.02684587]
[1760875200219,5.28159036,189.34,189.3,1.02684587]
[1760875200523,5.99159036,189.34,189.3,1.02684587]
[1760875200727,5.99159036,189.34,189.31,0.7]
[1760875201124,5.99159036,189.34,189.3,0.32684587]
[1760875201425,0.71,189.34,189.31,0.7]
[1760875201612,0.71,189.34,189.3,0.32684587]
[1760875201613,28.16122688,189.35,189.3,0.32684587]
[1760875201814,22.88,189.33,189.32,0.32685485]
[1760875202128,0.2,189.37,189.32,0.32685485]
[1760875202424,0.71,189.36,189.32,0.32685485]
[1760875202621,0.71,189.35,189.32,0.32685485]
[1760875202803,0.71,189.34,189.32,0.32685485]
[1760875203003,0.71,189.36,189.32,0.32685485]
[1760875203206,0.2,189.37,189.33,0.7]
[1760875203502,0.2,189.37,189.34,1.02666288]
[1760875203932,0.2,189.37,189.35,0.7]
[1760875204098,0.2,189.37,189.36,0.32657591]
[1760875204730,0.2,189.37,189.36,1.02657591]
[1760875204898,0.2,189.37,189.36,0.32657591]
[1760875205102,0.2,189.37,189.35,10.87647521]
[1760875205330,0.2,189.37,189.36,0.32657591]
[1760875205827,0.91,189.37,189.35,0.32657591]
[1760875206204,0.2,189.37,189.35,1.02657591]
[1760875206404,0.2,189.37,189.36,0.7]
[1760875206924,0.2,189.37,189.35,0.32657591]
[1760875207124,0.2,189.37,189.36,0.7]
[1760875207323,0.2,189.37,189.36,5.98094634]
[1760875207518,0.2,189.37,189.36,6.30752225]
[1760875208823,0.2,189.37,189.36,78.58399746]
[1760875211241,0.2,189.39,189.37,10.87647521]
[1760875211548,0.2,189.41,189.39,10.87647521]
[1760875211842,0.2,189.41,189.4,0.32629708]
[1760875212144,0.2,189.41,189.4,11.91277229]
[1760875212726,0.2,189.41,189.4,38.69277229]
[1760875212916,0.2,189.41,189.4,43.97260333]
[1760875213117,0.2,189.41,189.4,43.26260333]
[1760875213439,0.2,189.41,189.4,43.97260333]
[1760875214722,0.2,189.41,189.4,46.08827783]
[1760875215138,0.2,189.41,189.4,43.97260333]
[1760875215514,0.2,189.41,189.4,105.37260333]
[1760875216935,1e-08,189.44,189.43,33.75647521]
[1760875217138,1e-08,189.44,189.43,122.24253702]
[1760875217338,0.2,189.45,189.44,10.87647521]
[1760875217522,0.2,189.45,189.44,11.86246735]
[1760875217727,0.2,189.5,189.44,73.26246735]
[1760875217941,0.2,189.5,189.46,10.87647521]
[1760875218122,0.2,189.5,189.48,10.87647521]
[1760875218321,0.2,189.5,189.48,11.53647521]
[1760875219653,0.2,189.5,189.48,16.81407706]
[1760875220740,0.2,189.5,189.48,78.21407706]
[1760875220922,0.2,189.5,189.49,11.86214537]
[1760875221518,0.88,189.5,189.49,11.20214537]
[1760875221723,0.88,189.5,189.45,11.20215351]
[1760875222018,0.68,189.49,189.45,26.76]
[1760875222224,0.2,189.5,189.46,11.20230183]
[1760875222447,0.88,189.5,189.46,11.20230183]
[1760875222650,0.68,189.49,189.46,11.20230183]
[1760875222827,0.68,189.48,189.46,11.20230183]
[1760875223032,0.68,189.47,189.46,11.20230183]
[1760875223254,0.2,189.5,189.46,11.20230183]
[1760875223453,0.68,189.47,189.46,0.32582662]
[1760875223660,0.68,189.47,189.44,10.87647521]
[1760875223840,0.68,189.46,189.44,10.87647521]
[1760875224042,0.68,189.48,189.45,0.32594872]
[1760875224229,0.68,189.47,189.45,0.32594872]
[1760875224728,0.68,189.46,189.45,0.32594872]
[1760875225358,0.68,189.46,189.44,11.20242393]
[1760875225646,0.68,189.46,189.44,16.48112257]
[1760875226041,0.68,189.48,189.44,16.48112257]
[1760875226255,0.68,189.47,189.44,16.48112257]
[1760875226462,0.68,189.46,189.44,11.20242393]
[1760875226860,0.68,189.45,189.44,11.20242393]
[1760875227171,0.68,189.45,189.39,0.32599216]
[1760875227469,0.68,189.45,189.33,0.32620944]
[1760875227774,22.88,189.41,189.35,10.87647521]
[1760875227980,0.68,189.4,189.36,0.32652264]
[1760875228162,0.68,189.4,189.32,26.76]
[1760875228163,1.33997888,189.4,189.32,26.76]
[1760875228346,0.68,189.39,189.33,0.32667938]
[1760875228547,0.66004857,189.38,189.27,0.32676572]
[1760875228842,0.68,189.37,189.3,10.87647521]
[1760875229044,0.65994403,189.41,189.31,0.32686243]
[1760875229045,0.68,189.36,189.31,0.32686243]
[1760875230371,0.68,189.35,189.32,10.87647521]
[1760875230551,22.88,189.36,189.33,0.32675886]
[1760875230751,0.68,189.34,189.33,0.32675886]
[1760875230942,0.68,189.34,189.32,0.32675886]
[1760875231146,0.68,189.33,189.32,0.32675886]
[1760875232061,0.68,189.33,189.31,0.3268286]
[1760875232553,0.68,189.32,189.31,0.3268286]
[1760875232882,0.68,189.32,189.29,0.32689837]
[1760875233081,0.68,189.32,189.24,11.20346062]
[1760875233373,0.68,189.31,189.24,16.48774173]
[1760875233676,22.88,189.29,189.24,16.48774173]
[1760875233973,0.68,189.28,189.24,17.14774173]
[1760875234358,22.88,189.32,189.24,16.48774173]
[1760875234561,22.88,189.32,189.26,10.87647521]
[1760875234764,0.68,189.33,189.27,0.98715052]
[1760875235069,0.68,189.33,189.29,10.87647521]
[1760875235263,0.68,189.33,189.3,0.32694188]
[1760875235468,0.68,189.36,189.31,0.66]
[1760875235658,0.68,189.36,189.32,5.60879978]
[1760875235857,22.88,189.36,189.32,5.60879978]
[1760875236065,0.68,189.35,189.32,5.60879978]
[1760875236376,22.88,189.36,189.32,6.26879978]
[1760875236570,5.27899487,189.43,189.33,11.53647521]
[1760875236769,0.68,189.4,189.34,0.32650543]
[1760875237076,23.56,189.4,189.34,0.32650543]
[1760875237764,28.84005414,189.4,189.34,0.32650543]
[1760875239076,0.66001372,189.39,189.32,10.87647521]
[1760875239377,28.84005414,189.4,189.33,0.3266884]
[1760875239378,0.68,189.38,189.33,0.3266884]
[1760875239564,0.66001372,189.39,189.33,0.3266884]
[1760875239764,0.68,189.37,189.33,0.3266884]
[1760875239966,0.68,189.36,189.33,5.60829005]
[1760875240368,0.68,189.35,189.33,0.3266884]
[1760875240869,0.66001372,189.39,189.33,0.3266884]
[1760875241073,0.68,189.34,189.29,10.87647521]
[1760875241273,0.68,189.33,189.28,0.3267326]
[1760875241976,5.96184072,189.33,189.28,0.3267326]
[1760875242174,5.96184072,189.33,189.27,0.32700268]
[1760875242359,22.88,189.3,189.27,0.32700268]
[1760875242870,22.88,189.3,189.27,0.98700268]
[1760875243069,22.88,189.3,189.27,0.32700268]
[1760875243378,28.1615573,189.34,189.28,0.32713391]
[1760875243580,0.68,189.3,189.28,0.32713391]
[1760875243877,0.66,189.32,189.28,0.32713391]
[1760875244179,0.66,189.31,189.28,0.32713391]
[1760875244364,22.88,189.3,189.28,0.32713391]
[1760875244566,0.66,189.31,189.28,0.32713391]
[1760875245474,0.66,189.36,189.3,10.87647521]
[1760875245663,0.66,189.36,189.31,0.32681963]
[1760875245862,23.54,189.35,189.31,0.32681963]
[1760875246277,0.66,189.35,189.29,0.32681963]
[1760875246582,5.94129103,189.35,189.29,0.32681963]
[1760875247487,5.94129103,189.35,189.29,5.60970344]
[1760875247671,0.66,189.34,189.29,5.60970344]
[1760875247871,0.66,189.33,189.29,5.60970344]
[1760875248072,0.66,189.32,189.29,5.60970344]
[1760875248967,5.94097204,189.36,189.3,11.58647521]
[1760875249167,5.94097204,189.36,189.31,0.32685416]
[1760875249376,0.66,189.35,189.31,0.32685416]
[1760875249763,0.66,189.34,189.31,0.32685416]
[1760875249969,0.66,189.33,189.31,0.32685416]
[1760875250288,0.66,189.32,189.31,0.32685416]
[1760875250479,0.66,189.32,189.31,61.72685416]
[1760875252183,0.66,189.32,189.31,61.4]
[1760875252574,23.54008343,189.37,189.31,61.4]
[1760875252575,5.28122159,189.36,189.31,61.4]
[1760875252771,1.32015315,189.35,189.29,61.72689837]
[1760875252989,0.66,189.34,189.29,61.72689837]
[1760875253189,0.66,189.33,189.29,61.72689837]
[1760875253790,0.66,189.32,189.29,61.72689837]
[1760875254586,5.28160898,189.34,189.29,61.72689837]
[1760875254899,0.66,189.33,189.29,61.72689837]
[1760875255087,5.28160898,189.34,189.29,61.72689837]
[1760875255292,0.66,189.32,189.29,61.4]
[1760875256278,5.28160898,189.34,189.29,61.4]
[1760875256594,0.66,189.33,189.29,62.11]
[1760875257601,13.86266878,189.36,189.29,62.11]
[1760875257602,5.28122524,189.35,189.29,61.4]
[1760875257807,5.94122524,189.35,189.3,1.03688938]
[1760875258106,0.66,189.34,189.3,62.43688938]
[1760875259070,5.28122524,189.35,189.31,0.71]
[1760875259409,23.54,189.36,189.32,1.03680237]
[1760875260371,23.54,189.36,189.32,0.32680237]
[1760875260575,0.66,189.39,189.33,1.03673261]
[1760875260987,22.88,189.38,189.33,1.03673261]
[1760875261188,23.54,189.38,189.34,0.71]
[1760875261493,22.88,189.38,189.33,0.32673261]
[1760875261696,0.66,189.37,189.33,1.03673261]
[1760875262076,22.88,189.38,189.34,0.71]
[1760875262397,23.54,189.38,189.34,0.71]
[1760875262789,0.66,189.37,189.33,0.32673261]
[1760875262988,28.16041294,189.38,189.33,0.32673261]
[1760875263198,28.82000655,189.4,189.34,11.58647521]
[1760875263397,28.82000655,189.4,189.35,1.03654068]
[1760875264103,28.82000655,189.4,189.35,0.32654068]
[1760875264301,22.88,189.4,189.36,0.71]
[1760875264603,0.66,189.39,189.35,0.32654068]
[1760875264809,0.66,189.38,189.35,0.32654068]
[1760875265017,0.66,189.37,189.34,27.10656692]
[1760875265181,0.66,189.37,189.34,26.78]
[1760875265382,0.66,189.37,189.34,27.49]
[1760875265809,0.66,189.37,189.34,26.78]
[1760875267399,0.66,189.37,189.33,11.20311185]
[1760875267713,0.66,189.37,189.33,11.91311185]
[1760875268302,0.66,189.37,189.33,73.31311185]
[1760875268810,0.66,189.37,189.34,0.71]
[1760875269110,5.28010982,189.39,189.35,0.71]
[1760875269292,5.94010982,189.39,189.35,0.71]
[1760875269814,0.66,189.42,189.36,1.03652343]
[1760875269983,23.54,189.42,189.36,1.03652343]
[1760875270183,5.27871621,189.44,189.38,10.87647521]
[1760875270386,5.27871621,189.44,189.39,0.98626185]
[1760875270613,5.93871621,189.44,189.39,0.98626185]
[1760875271301,13.85498046,189.47,189.4,11.53647521]
[1760875271302,5.27816831,189.46,189.4,11.53647521]
[1760875271497,5.93816831,189.46,189.41,0.98612247]
[1760875271699,0.66,189.45,189.41,0.32612247]
[1760875271885,5.27816831,189.46,189.41,0.32612247]
[1760875272202,23.54,189.45,189.41,0.32612247]
[1760875272409,23.54,189.45,189.4,0.32612247]
[1760875272614,23.54,189.45,189.41,0.66]
[1760875272814,23.54,189.45,189.4,0.32612247]
[1760875272815,0.66,189.44,189.4,0.32612247]
[1760875273112,5.27899487,189.43,189.38,0.32619216]
[1760875273319,1.31990919,189.42,189.36,0.32630532]
[1760875274412,0.66,189.42,189.36,0.98630532]
[1760875274597,0.68,189.41,189.36,0.98630532]
[1760875274915,0.68,189.41,189.36,6.26716727]
[1760875275117,5.95899487,189.43,189.37,0.66]
[1760875275299,5.95899487,189.43,189.38,0.326366]
[1760875275499,0.68,189.42,189.38,0.986366]
[1760875276111,5.95932546,189.42,189.38,0.986366]
[1760875276703,0.68,189.42,189.38,0.986366]
[1760875277112,5.95934826,189.42,189.38,0.986366]
[1760875277292,5.95934826,189.42,189.38,0.326366]
[1760875277500,5.95934826,189.42,189.38,0.986366]
[1760875278394,5.95934826,189.42,189.16,43.55216209]
[1760875278395,1.33994403,189.41,189.35,10.87647521]
[1760875278591,22.88,189.38,189.24,15.89]
[1760875278816,22.88,189.38,189.14,27.0]
[1760875278817,22.88,189.33,189.22,0.66]
[1760875278989,22.88,189.29,189.22,5.94485078]
[1760875279190,0.68,189.31,189.23,0.66]
[1760875279385,0.68,189.31,189.24,10.87647521]
[1760875279591,22.88,189.32,189.25,0.66]
[1760875279800,22.88,189.32,189.26,10.87647521]
[1760875280106,0.68,189.33,189.27,0.66]
[1760875280705,0.68,189.33,189.27,5.94343718]
[1760875281618,5.96179992,189.33,189.27,5.94343718]
[1760875282613,0.68,189.33,189.27,5.94343718]
[1760875282792,0.65994403,189.41,189.28,61.21647521]
[1760875283117,4.4432866,189.52,189.32,10.87647521]
[1760875283118,0.68,189.43,189.32,10.87647521]
[1760875283422,4.4432866,189.52,189.34,10.87647521]
[1760875283423,18.47160649,189.48,189.34,10.87647521]
[1760875283615,0.68,189.47,189.36,10.87647521]
[1760875283793,0.68,189.47,189.34,10.87647521]
[1760875283794,22.88,189.45,189.38,10.87647521]
[1760875283989,1.33983952,189.44,189.37,0.66]
[1760875284401,5.27899487,189.43,189.37,0.66]
[1760875284615,5.95899487,189.43,189.37,0.66]
[1760875285103,6.61886922,189.43,189.37,0.66]
[1760875285292,5.95899487,189.43,189.37,0.66]
[1760875285916,0.65990919,189.42,189.34,5.28126113]
[1760875286109,0.68,189.41,189.34,0.66]
[1760875286295,5.27983104,189.4,189.34,0.66]
[1760875286500,5.95961985,189.41,189.35,10.87647521]
[1760875287199,5.27927836,189.42,189.36,0.66]
[1760875287519,28.15901908,189.43,189.37,10.87647521]
[1760875287818,28.15901908,189.43,189.38,0.66]
[1760875288019,22.88,189.43,189.39,0.66]
[1760875288202,0.68,189.47,189.41,10.87647521]
[1760875288519,22.88,189.46,189.42,0.66]
[1760875289189,28.15833337,189.46,189.42,0.66]
[1760875290292,22.88,189.45,189.43,0.66]
[1760875290602,22.88,189.48,189.44,0.66]
[1760875290798,22.88,189.46,189.39,0.66]
[1760875291004,0.68,189.45,189.39,0.66]
[1760875291506,23.53976987,189.46,189.39,0.66]
[1760875291912,28.15855559,189.45,189.39,0.66]
[1760875292297,22.88,189.45,189.4,10.87647521]
[1760875292506,0.68,189.47,189.41,0.66]
[1760875292713,22.88,189.46,189.41,0.66]
[1760875292916,23.56,189.46,189.41,0.66]
[1760875293114,0.68,189.45,189.4,10.87647521]
[1760875293317,0.68,189.45,189.4,11.53647521]
[1760875293625,0.68,189.45,189.41,0.66]
[1760875294113,6.61836225,189.45,189.39,62.06]
[1760875294318,5.95855756,189.45,189.39,62.06]
[1760875295616,1.33983952,189.44,189.37,0.66]
[1760875296214,1.33983952,189.44,189.36,77.55723763]
[1760875296413,1.33983952,189.44,189.37,0.66]
[1760875296612,5.27899487,189.43,189.37,0.66]
[1760875297328,5.95899487,189.43,189.36,72.27647521]
[1760875297522,5.95899487,189.43,189.36,61.4]
[1760875297523,1.33990919,189.42,189.36,61.4]
[1760875297716,0.68,189.41,189.36,61.4]
[1760875298024,0.68,189.4,189.36,61.4]
[1760875298226,0.68,189.39,189.34,0.66]
[1760875298409,0.68,189.38,189.33,10.87647521]
[1760875298608,23.56,189.4,189.34,0.66]
[1760875298824,5.28010982,189.39,189.34,0.66]
[1760875299230,5.96010982,189.39,189.34,0.66]
[1760875300222,5.96010982,189.39,189.34,5.94145125]
[1760875300825,5.96010982,189.39,189.34,0.66]
[1760875301607,22.88,189.4,189.35,0.66]
[1760875302020,22.88,189.4,189.36,0.66]
[1760875302222,5.27929035,189.42,189.37,0.66]
[1760875302410,22.88,189.43,189.37,0.66]
[1760875302606,22.88,189.43,189.38,10.87647521]
[1760875302833,0.65970023,189.48,189.4,10.87647521]
[1760875303132,0.88,189.52,189.42,10.87647521]
[1760875303321,23.08,189.5,189.44,10.87647521]
[1760875303524,28.35707697,189.5,189.44,11.53647521]
[1760875303728,28.35707697,189.5,189.4,10.87647521]
[1760875303917,28.35707697,189.5,189.45,0.71]
[1760875304121,28.35707697,189.5,189.46,0.71]
[1760875304835,0.7,189.49,189.42,5.98909144]
[1760875305012,0.7,189.49,189.42,5.27909144]
[1760875305216,0.7,189.49,189.43,0.71]
[1760875305419,22.88,189.48,189.43,0.71]
[1760875305624,0.2,189.5,189.44,0.71]
[1760875306214,0.2,189.5,189.45,5.27843758]
[1760875306416,0.2,189.5,189.46,0.71]
[1760875306714,0.2,189.5,189.47,0.71]
[1760875307032,0.2,189.5,189.48,0.71]
[1760875307731,0.2,189.5,189.49,0.71]
[1760875309823,0.2,189.5,189.49,11.58647521]
[1760875310833,0.2,189.5,189.47,0.71]
[1760875311038,0.2,189.5,189.46,5.27815658]
[1760875311039,0.2,189.5,189.48,11.58647521]
[1760875313623,0.2,189.5,189.49,0.71]
[1760875314741,0.2,189.5,189.49,72.98647521]
[1760875315448,0.2,189.5,189.49,78.26379855]
[1760875317040,0.2,189.5,189.46,0.71]
[1760875317230,0.2,189.5,189.46,16.86438779]
[1760875317433,0.2,189.5,189.47,0.71]
[1760875318222,0.2,189.5,189.46,16.15438779]
[1760875318424,0.2,189.5,189.47,0.71]
[1760875318925,0.2,189.5,189.48,0.71]
[1760875319144,0.2,189.5,189.46,16.15438779]
[1760875319347,0.2,189.5,189.48,0.71]
[1760875319644,0.2,189.5,189.49,0.71]
[1760875320430,0.2,189.5,189.49,16.86379855]
[1760875320833,0.2,189.5,189.49,10.87647521]
[1760875321041,0.2,189.5,189.49,11.58647521]
[1760875321454,0.2,189.5,189.49,16.86379855]
[1760875321645,0.2,189.5,189.49,72.98647521]
[1760875321946,0.2,189.5,189.49,72.27647521]
[1760875322153,0.2,189.5,189.49,72.98647521]
[1760875322352,0.2,189.5,189.49,78.26379855]
[1760875323130,0.2,189.5,189.49,105.06379855]
[1760875325151,0.2,189.51,189.5,33.75647521]
[1760875325360,0.2,189.51,189.5,34.46647521]
[1760875325536,0.2,189.52,189.5,34.46647521]
[1760875325738,0.2,189.52,189.51,11.58647521]
[1760875327135,0.2,189.52,189.51,16.1532416]
[1760875327658,0.2,189.52,189.51,72.27647521]
[1760875327865,0.9,189.52,189.51,61.4]
[1760875328153,0.9,189.52,189.49,61.4]
[1760875328349,0.7,189.51,189.47,10.87647521]
[1760875328547,0.7,189.5,189.47,10.87647521]
[1760875328857,0.7,189.49,189.41,61.4]
[1760875329058,0.65959579,189.51,189.42,32.09927357]
[1760875329059,0.7,189.48,189.42,32.09927357]
[1760875329254,0.7,189.47,189.43,10.87647521]
[1760875329462,0.7,189.46,189.43,10.87647521]
[1760875329647,0.2,189.52,189.45,10.87647521]
[1760875329845,0.7,189.51,189.45,10.87647521]
[1760875330043,0.7,189.5,189.45,10.87647521]
[1760875330242,0.7,189.5,189.45,0.71]
[1760875330756,0.7,189.49,189.43,11.58647521]
[1760875330942,5.47651787,189.52,189.44,5.27871621]
[1760875331136,0.7,189.51,189.45,10.87647521]
[1760875331758,0.69,189.5,189.43,26.84]
[1760875331957,23.57,189.49,189.43,26.84]
[1760875332262,0.69,189.48,189.43,10.87647521]
[1760875332453,0.69,189.48,189.43,11.57647521]
[1760875332961,0.69,189.47,189.43,10.87647521]
[1760875333458,0.69,189.46,189.4,32.119609]
[1760875333642,0.69,189.46,189.41,10.87647521]
[1760875333844,0.7,189.45,189.41,10.87647521]
[1760875334071,0.7,189.44,189.41,10.87647521]
[1760875334253,0.7,189.44,189.41,72.27647521]
[1760875334456,0.7,189.44,189.4,61.4]
[1760875334664,0.7,189.43,189.37,10.87647521]
[1760875334846,0.7,189.42,189.35,67.36121432]
[1760875335043,5.9794145,189.42,189.36,10.87647521]
[1760875335457,5.2794145,189.42,189.36,10.87647521]
[1760875335636,1.35994403,189.41,189.3,0.68]
[1760875335944,22.88,189.39,189.28,27.54]
[1760875336151,1.36004857,189.38,189.29,10.87647521]
[1760875336348,0.7,189.37,189.29,16.15921362]
[1760875336551,0.7,189.36,189.29,16.15921362]
[1760875336947,0.7,189.36,189.3,0.68]
[1760875337357,6.64034722,189.39,189.31,10.87647521]
[1760875337537,22.88,189.38,189.31,11.55647521]
[1760875337857,23.58,189.38,189.31,11.55647521]
[1760875338251,0.7,189.38,189.31,11.55647521]
[1760875338453,5.98043236,189.38,189.31,16.83868357]
[1760875338859,28.86043236,189.38,189.31,16.83868357]
[1760875339059,29.52048093,189.38,189.31,16.83868357]
[1760875339363,28.86043236,189.38,189.31,16.83868357]
[1760875341276,28.86043236,189.38,189.31,78.23868357]
[1760875341477,0.7,189.37,189.31,78.23868357]
[1760875342771,0.65997888,189.4,189.33,10.87647521]
[1760875342972,5.27874505,189.44,189.35,10.87647521]
[1760875343148,0.65980469,189.45,189.37,10.87647521]
[1760875343346,5.93807873,189.46,189.37,10.87647521]
[1760875343565,5.93807873,189.46,189.39,10.87647521]
[1760875343868,5.93807873,189.46,189.4,0.68]
[1760875344953,0.7,189.45,189.39,10.87647521]
[1760875345154,1.35983952,189.44,189.37,16.83690509]
[1760875346582,6.63861091,189.44,189.37,16.83690509]
[1760875348090,5.2784299,189.46,189.38,11.55647521]
[1760875348272,1.35980469,189.45,189.39,0.68]
[1760875348468,1.35980469,189.45,189.39,62.08]
[1760875348783,5.9786097,189.45,189.39,67.36004855]
[1760875349153,1.35973505,189.47,189.4,0.68]
[1760875349356,5.27727247,189.5,189.41,10.87647521]
[1760875349588,0.65959579,189.51,189.43,10.87647521]
[1760875349879,0.2,189.52,189.45,10.87647521]
[1760875350061,0.2,189.52,189.46,0.68]
[1760875350379,0.2,189.52,189.47,10.87647521]
[1760875350594,0.2,189.52,189.49,10.87647521]
[1760875351390,0.2,189.52,189.5,0.68]
[1760875351856,0.2,189.52,189.49,16.15374801]
[1760875352056,0.2,189.52,189.51,11.55647521]
[1760875352880,0.2,189.52,189.51,16.8332416]
[1760875353666,0.2,189.52,189.51,11.55647521]
[1760875354673,0.2,189.52,189.48,27.56]
[1760875354872,0.2,189.52,189.49,66.57368916]
[1760875355262,0.2,189.52,189.51,10.87647521]
[1760875355462,0.2,189.52,189.51,72.27647521]
[1760875355687,0.2,189.52,189.51,72.95647521]
[1760875356266,0.2,189.52,189.51,78.2332416]
[1760875358163,0.2,189.52,189.51,72.95647521]
[1760875358467,0.2,189.52,189.51,61.4]
[1760875360475,0.9,189.52,189.51,61.4]
[1760875360671,6.1765469,189.52,189.47,61.4]
[1760875360863,1.35959579,189.51,189.44,104.41517878]
[1760875361069,0.7,189.5,189.44,93.53870357]
[1760875362197,5.93652158,189.51,189.45,0.68]
[1760875362796,6.63652158,189.51,189.45,0.68]
[1760875363203,6.63652158,189.51,189.44,26.86]
[1760875363403,0.7,189.5,189.43,0.68]
[1760875363701,0.7,189.5,189.43,5.95895725]
[1760875364174,5.97708419,189.5,189.43,5.95895725]
[1760875364893,0.65966541,189.49,189.43,5.95895725]
[1760875365195,6.65702573,189.49,189.43,5.95895725]
[1760875365600,6.65702573,189.49,189.43,0.68]
[1760875366082,6.65702573,189.49,189.42,104.41574498]
[1760875366278,0.72,189.48,189.42,104.41574498]
[1760875366481,0.72,189.48,189.42,105.07574498]
[1760875367006,6.65732605,189.48,189.42,105.07574498]
[1760875367183,6.65648602,189.51,189.44,10.87647521]
[1760875367498,6.65648602,189.51,189.44,11.53647521]
[1760875367702,23.6,189.5,189.42,93.53926977]
[1760875367866,1.37966541,189.49,189.43,10.87647521]
[1760875368068,0.72,189.49,189.43,11.53647521]
[1760875368996,0.72,189.49,189.43,16.15534234]
[1760875369198,28.81694423,189.5,189.44,0.66]
[1760875369702,42.00955636,189.5,189.42,61.4]
[1760875369871,0.72,189.49,189.39,0.66]
[1760875370071,0.65970023,189.48,189.39,0.66]
[1760875370279,0.72,189.47,189.39,0.66]
[1760875370879,5.93792884,189.46,189.39,0.66]
[1760875371082,0.72,189.45,189.39,0.66]
[1760875371674,0.72,189.45,189.36,0.66]
[1760875371893,1.37983952,189.44,189.35,10.87647521]
[1760875372189,22.88,189.47,189.38,10.87647521]
[1760875372190,0.65973505,189.47,189.38,10.87647521]
[1760875372392,1.37966541,189.49,189.4,10.87647521]
[1760875372594,22.88,189.49,189.42,10.87647521]
[1760875372885,0.65966541,189.49,189.43,0.66]
[1760875373093,23.53966541,189.49,189.43,0.66]
[1760875373470,0.72,189.48,189.4,66.67955824]
[1760875373669,0.72,189.48,189.41,0.66]
[1760875373876,0.65973505,189.47,189.41,0.66]
[1760875374078,1.37973505,189.47,189.41,0.66]
[1760875374478,41.35072792,189.49,189.42,10.87647521]
[1760875374681,0.65970023,189.48,189.43,0.66]
[1760875375006,6.65742743,189.48,189.43,0.66]
[1760875376490,5.9977272,189.48,189.44,0.66]
[1760875376798,6.65742743,189.48,189.44,0.66]
[1760875377793,5.9977272,189.48,189.44,0.66]
[1760875378195,6.65742743,189.48,189.44,0.66]
[1760875378693,28.15733438,189.49,189.45,0.66]
[1760875378876,5.27706279,189.5,189.46,0.66]
[1760875379293,5.99706279,189.5,189.46,0.66]
[1760875379485,5.99706279,189.5,189.44,0.66]
[1760875380481,5.99706279,189.5,189.44,5.93870122]
[1760875381175,1.37966541,189.49,189.44,0.66]
[1760875381497,0.72,189.48,189.41,0.66]
[1760875381796,0.65973505,189.47,189.41,0.66]
[1760875382380,0.65973505,189.47,189.41,62.06]
[1760875382578,0.65973505,189.47,189.42,0.66]
[1760875382794,1.37973505,189.47,189.42,0.66]
[1760875383204,6.65762914,189.47,189.42,0.66]
[1760875386491,0.72,189.46,189.41,66.67943562]
[1760875386692,0.72,189.45,189.41,62.06]